Cogmind - Beta 9.6 @@@ ROGUE MODE // 2020.08.09 @ 01:24:27 Player: Judas Result: Destroyed by Y-45 Defender with Beam Rifle Performance ------------- Evolutions (1) 500 Regions Visited (3) 600 Robots Destroyed (33) 165 Value Destroyed (756) 756 Prototype IDs (2) 40 Alien Tech Used (0) 0 Bonus (0) 0 TOTAL SCORE: 2061 Bonus ------- None Cogmind --------- Core Integrity 0/400 Matter 123/300 Energy 100/100 System Corruption 0% Temperature Cool (9) Movement Core (400) Ox7 Location -9/Storage Parts ------- > --- POWER (1) -------- (None) > --- PROPULSION (2) --- (None) > --- UTILITY (3) ------ Medium Storage Unit Large Storage Unit > --- WEAPON (3) ------- (None) > --- INVENTORY (14) --- Light Ion Engine Aluminum Leg Airjet Airjet Medium Storage Unit Large Storage Unit Signal Interpreter EM Pulse Gun Assault Rifle Light Assault Rifle Peak State ------------ > --- POWER ------------ Cold Fusion Reactor > --- PROPULSION ------- Airjet Airjet > --- UTILITY ---------- Medium Storage Unit Large Storage Unit Sensor Array > --- WEAPON ----------- EM Pulse Gun EM Shotgun Advanced Beam Cannon > --- INVENTORY -------- Light Ion Engine Aluminum Leg Airjet Airjet Medium Storage Unit Large Storage Unit Signal Interpreter EM Pulse Gun Advanced Beam Cannon Assault Rifle Light Assault Rifle Autogun Grenade Launcher Rocket Launcher [Rating: 23] Favorites ----------- Power Ion Engine Engine Ion Engine Power Core Light Nuclear Core Reactor Cold Fusion Reactor Propulsion Light Treads Treads Light Treads Leg Aluminum Leg Hover Unit Airjet Utility Large Storage Unit Device Sensor Array Storage Large Storage Unit Weapon EM Pulse Gun Energy Gun EM Pulse Gun Energy Cannon Advanced Beam Cannon Ballistic Gun Assault Rifle Launcher Rocket Launcher Build | -11 -10 -9 -9 ------- Run | Scr Mat Mat Sto Slots Evolved 2 | . . 2 . Power . | . . . . Propulsion . | . . . . Utility 1 | . . 1 . Weapon 1 | . . 1 . Parts Attached 29 | . 12 11 6 Power 3 | . 2 . 1 Engine 1 | . 1 . . Core 1 | . 1 . . Reactor 1 | . . . 1 Propulsion 4 | . 2 2 . Treads 2 | . 2 . . Leg . | . . . . Wheel . | . . . . Hover 2 | . . 2 . Flight . | . . . . Utility 6 | . 4 2 . Device 3 | . 3 . . Storage 3 | . 1 2 . Processor . | . . . . Hackware . | . . . . Protection . | . . . . Artifact . | . . . . Weapon 16 | . 4 7 5 Energy Gun 7 | . 3 4 . Energy Cannon 2 | . . 1 1 Ballistic Gun 2 | . . 1 1 Ballistic Cannon . | . . . . Launcher 5 | . 1 1 3 Special Weapon . | . . . . Impact Weapon . | . . . . Slashing Weapon . | . . . . Piercing Weapon . | . . . . Special Melee Weapon . | . . . . Unidentified Prototypes 2 | . . 1 1 Parts Lost 14 | . 1 1 12 Power 3 | . 1 . 2 Propulsion 2 | . . . 2 Utility 1 | . . . 1 Weapon 8 | . . 1 7 Highest Loss Streak 10 | . 1 1 10 Average Slot Usage (%) 95 | . 96 100 83 Engine 9 | . 11 11 2 Core 1 | . 2 . . Reactor 1 | . . . 7 Treads 18 | . 23 19 . Leg 2 | . 4 . . Hover 3 | . . 2 16 Device 10 | . 10 11 7 Storage 17 | . 14 22 22 Energy Gun 16 | . 13 22 12 Energy Cannon 1 | . . . 9 Ballistic Gun 10 | . 14 10 . Launcher 1 | . . . 4 Naked Turns . | . . . . Heaviest Build 47 | 11 29 39 47 Greatest Support 40 | 20 40 40 18 Greatest Overweight (x) 7 | . . 2 7 Average Overweight (x) . | . . . 2 Largest Inventory Capacity 16 | 6 12 16 14 Average Capacity 10 | 6 8 13 14 Most Carried 14 | 6 9 14 14 Average Carried 9 | 6 7 10 12 Final Capacity 14 | 6 10 14 14 Final Carried 14 | 6 9 14 10 Class Distribution -------------------- 55% | Mutant 44% | Skirmisher Dominant Class ---------------- Mutant | -10/Materials Skirmisher | -9/Materials Skirmisher | -9/Storage Resources | -11 -10 -9 -9 ----------- Run | Scr Mat Mat Sto Matter Collected 500 | 185 68 247 . Remotely . | . . . . Salvage Created 1009 | 100 277 477 155 Parts 71 | 6 21 31 13 Haulers Intercepted 2 | . 1 1 . Recyclers Shooed 1 | . . . 1 Parts Field Recycled . | . . . . Retrieved Matter . | . . . . Parts Self-Destructed . | . . . . Prevented . | . . . . Kills | -11 -10 -9 -9 ------- Run | Scr Mat Mat Sto Combat Hostiles Destroyed 22 | . 7 8 7 Guns 8 | . 4 4 . Cannons 1 | . . . 1 AOE 13 | . 3 4 6 Classes Destroyed 10 | 2 5 3 . Worker 4 | . 3 . 1 Tunneler 1 | 1 . . . Hauler 2 | . 1 1 . Recycler 2 | 1 . 1 . Watcher 2 | . 1 1 . Swarmer 6 | . 3 . 3 Grunt 9 | . 4 3 2 Brawler 1 | . . 1 . Duelist 1 | . . 1 . Sentry 5 | . . 3 2 Best Kill Streak 6 | 2 6 5 5 Combat Bots Only 5 | . 5 3 4 Max Kills in Single Turn 4 | 1 2 2 4 Gunslinging . | . . . . Exploded 3 | . 2 1 3 Melee . | . . . . Uniques/NPCs Destroyed . | . . . . Combat | -11 -10 -9 -9 -------- Run | Scr Mat Mat Sto Damage Taken 1730 | 4 365 333 1028 Core 498 | . 94 55 349 Absorbed by Shields . | . . . . Core Remaining (%) 81 | 100 62 . . Volleys Fired 59 | 2 23 23 11 Largest 3 | 2 2 3 3 Hottest 153 | 60 60 153 141 Shots Fired 118 | 4 41 51 22 Gun 96 | 4 38 47 7 Cannon 10 | . . 1 9 Launcher 12 | . 3 3 6 Special . | . . . . Kinetic 40 | 2 20 15 3 Thermal 10 | . . 1 9 Explosive 12 | . 3 3 6 Electromagnetic 56 | 2 18 32 4 Robot Hit Streak 9 | 2 7 9 3 Robot Miss Streak 4 | 2 4 3 1 Penetration Max . | . . . . Secondary Targets 2 | . 1 1 . Max Gunslinging Chain 1 | . 1 1 . Shots Hit Robots 66 | 2 20 36 8 Core Hits 64 | 2 20 24 18 Critical Hits . | . . . . Critical Kills . | . . . . Critical Parts Destroyed . | . . . . Melee Attacks . | . . . . Impact . | . . . . Slashing . | . . . . Piercing . | . . . . Sneak Attacks . | . . . . Combat Hostiles . | . . . . Follow-up Attacks . | . . . . Damage Inflicted 2110 | 65 673 755 617 Guns 755 | 28 308 386 33 Cannons 104 | . . 21 83 Explosions 1241 | 37 365 338 501 Melee . | . . . . Ramming 10 | . . 10 . Kinetic 318 | 15 172 118 13 Thermal 419 | 37 70 229 83 Explosive 926 | . 295 130 501 Electromagnetic 437 | 13 136 268 20 Impact . | . . . . Slashing . | . . . . Piercing . | . . . . Highest Corruption 1 | . 1 . . Average Corruption 1 | . 1 . . Corruption Purged . | . . . . Overload Shots . | . . . . Overflow Damage . | . . . . Projectiles . | . . . . Explosions . | . . . . Melee . | . . . . Knockbacks . | . . . . Impact . | . . . . Kinetic . | . . . . Secondary . | . . . . Self-Inflicted Damage 67 | 4 . 9 54 Shots 5 | 1 . 1 3 Rammed 1 | . . 1 . Targets Rammed 1 | . . 1 . Kicked . | . . . . Crushed . | . . . . Highest Temperature 327 | 12 57 327 166 Average Temperature 84 | 12 19 116 88 Received Heat Transfer 564 | . 117 120 327 Effects 1 | . . 1 . Interference 1 | . . 1 . Siege Activations . | . . . . Robots Corrupted . | . . . . Combat Hostiles . | . . . . Parts Fried 1 | . . 1 . Impact Corruptions . | . . . . Robots Melted . | . . . . Combat Hostiles . | . . . . Parts Melted . | . . . . Heat Transferred 585 | 50 100 287 148 Parts Sabotaged . | . . . . Parts Stolen . | . . . . Parts Stripped . | . . . . Power Chain Reactions 5 | 1 1 3 . Missiles Intercepted . | . . . . Alert | -11 -10 -9 -9 ------- Run | Scr Mat Mat Sto Peak Influence 274 | 10 200 274 255 Average Influence 96 | 5 68 107 171 Maximum Alert Level 1 | . 1 1 1 Low Security (%) 76 | 100 85 75 49 Level 1 23 | . 14 24 50 Level 2 . | . . . . Level 3 . | . . . . Level 4 . | . . . . Level 5 . | . . . . High Security . | . . . . Max Security . | . . . . Squads Dispatched 2 | . . 1 1 Investigation . | . . . . Extermination . | . . . . Reinforcement 2 | . . 1 1 Assault . | . . . . Garrison . | . . . . Intercept . | . . . . Construction Impeded . | . . . . Haulers Reinforced . | . . . . Stealth | -11 -10 -9 -9 --------- Run | Scr Mat Mat Sto Distress Signals 4 | . 1 3 . Communications Jammed . | . . . . Distress Signals . | . . . . Times Spotted 34 | . 13 11 10 Peak Tracking Total 7 | . 5 5 7 Tactical Retreats 2 | . 2 . . Traps | -11 -10 -9 -9 ------- Run | Scr Mat Mat Sto Traps Triggered 2 | . 1 . 1 Indirectly . | . . . . Trap Hack Attempts . | . . . . Triggered . | . . . . Disarmed . | . . . . Reprogrammed . | . . . . Reused . | . . . . Traps Extracted . | . . . . Installed . | . . . . Triggered . | . . . . Machines | -11 -10 -9 -9 ---------- Run | Scr Mat Mat Sto Machines Disabled 1 | . 1 . . Max in Single Turn 1 | . 1 . . Machines Sabotaged . | . . . . Garrisons Compromised . | . . . . Overloaded Fab Kills . | . . . . Fab Network Shutdowns . | . . . . Hacking | -11 -10 -9 -9 --------- Run | Scr Mat Mat Sto Machines Accessed 3 | . 3 . . Terminals 1 | . 1 . . Fabricators . | . . . . Repair Stations 1 | . 1 . . Recycling Units 1 | . 1 . . Scanalyzers . | . . . . Garrison Access . | . . . . Total Hacks 6 | . 6 . . Successful 3 | . 3 . . Failed 3 | . 3 . . Catastrophic . | . . . . Database Lockouts . | . . . . Manual . | . . . . Terminals 2 | . 2 . . Fabricators . | . . . . Repair Stations 2 | . 2 . . Recycling Units 2 | . 2 . . Scanalyzers . | . . . . Garrison Access . | . . . . Terminal Hacks . | . . . . Fabricator Hacks . | . . . . Repair Station Hacks 2 | . 2 . . Scan Component 1 | . 1 . . Repair 1 | . 1 . . Recycling Unit Hacks 1 | . 1 . . Retrieve Components 1 | . 1 . . Scanalyzer . | . . . . Garrison Access Hacks . | . . . . Unauthorized Hacks . | . . . . Terminals . | . . . . Fabricators . | . . . . Repair Stations . | . . . . Recycling Units . | . . . . Scanalyzers . | . . . . Garrison Access . | . . . . Data Cores Recovered . | . . . . Used . | . . . . Hacking Detections 1 | . 1 . . Full Trace Events . | . . . . Feedback Events . | . . . . Feedback Blocked . | . . . . Robot Schematics Acquired . | . . . . Robots Built . | . . . . Matter . | . . . . Time . | . . . . Total Robot Build Rating . | . . . . Part Schematics Acquired . | . . . . Parts Built . | . . . . Matter . | . . . . Time . | . . . . Total Part Build Rating . | . . . . Parts Repaired 1 | . 1 . . Time 26 | . 26 . . Parts Recycled . | . . . . Recycled Matter . | . . . . Retrieved Matter . | . . . . Retrieved Components 3 | . 3 . . Parts Scanalyzed . | . . . . Part Schematics Acquired . | . . . . Parts Damaged . | . . . . Bothacking | -11 -10 -9 -9 ------------ Run | Scr Mat Mat Sto Used RIF Installer . | . . . . Robots Hacked . | . . . . Non-combat . | . . . . Combat . | . . . . Robot Hacks Applied . | . . . . Relay Couplers Released . | . . . . Robots Rewired . | . . . . Allies Hacked . | . . . . Hacks Repelled . | . . . . Allies | -11 -10 -9 -9 -------- Run | Scr Mat Mat Sto Total Allies . | . . . . Largest Group . | . . . . Highest-Rated Group . | . . . . Highest-Rated Ally . | . . . . Total Orders . | . . . . Ally Attacks . | . . . . Total Damage . | . . . . Kills . | . . . . Allies Corrupted . | . . . . Allies Melted . | . . . . Intel | -11 -10 -9 -9 ------- Run | Scr Mat Mat Sto Robot Analysis Total . | . . . . Derelict Logs Recovered . | . . . . Drone Launches . | . . . . Drone Recoveries . | . . . . Exploration | -11 -10 -9 -9 ------------- Run | Scr Mat Mat Sto Turns Passed 929 | 16 466 300 147 Spaces Moved 440 | 9 243 130 58 Core 4 | . . . 4 Treads 310 | . 192 118 . Legs 60 | 9 51 . . Wheels . | . . . . Hover 66 | . . 12 54 Flight . | . . . . Fastest Speed 116 | 120 120 160 116 Average Speed 159 | 120 151 161 192 Slowest Speed 400 | 120 160 176 400 Overloaded Moves . | . . . . Propulsion Burnouts . | . . . . Robots Hopped . | . . . . Cave-ins Triggered . | . . . . Exploration Rate (%) 20 | 3 40 18 20 Regions Visited 3 Branch Regions 1 Pre-discovered Areas . | . . . . Known Exits Taken . | . . . . Unknown Exits Taken 3 | 1 1 1 . Scrap Searched . | . . . . Spaces Dug . | . . . . Terrain Destroyed 87 | 4 7 37 39 Melee . | . . . . Projectile . | . . . . AOE 87 | 4 7 37 39 Actions | -11 -10 -9 -9 --------- Run | Scr Mat Mat Sto Total 561 | 10 299 177 75 Wait 6 | . 6 . . Move 437 | 8 242 129 58 Hop . | . . . . Pick Up 17 | . 8 9 . Fast Attach 5 | . 4 . 1 Attach 10 | . 2 4 4 Detach 1 | . . 1 . Swap 14 | . 6 7 1 Drop 11 | . 8 3 . Fire 59 | 2 23 23 11 Melee . | . . . . Ram . | . . . . Kick . | . . . . Crush 1 | . . 1 . Escape Stasis . | . . . . Rewire . | . . . . Trap . | . . . . Miscellaneous . | . . . . Route ------- -11/Scrapyard -10/Materials -9/Materials -9/Storage History --------- Turn | Location | Event 1 | -11/Scrapyard | Discovered new exit (range 3) 17 | -11/Scrapyard | Entered Materials 342 | -10/Materials | Build established: Mutant 383 | -10/Materials | Discovered new exit (range 12) 393 | -10/Materials | Repaired EM Pulse Gun? 483 | -10/Materials | Entered another Materials area 483 | -9/Materials | Evolved 2 slots: Utility x1, Weapon x1 648 | -9/Materials | Discovered new exit (range 14) 783 | -9/Materials | Entered Storage 789 | -9/Storage | Build established: Skirmisher 916 | -9/Storage | Core integrity fell below 50% 927 | -9/Storage | Core integrity fell below 20% 930 | -9/Storage | Destroyed by Y-45 Defender with Beam Rifle Last Messages --------------- 00847_ S-10 Pest destroyed. 00847_ K-01 Serf destroyed. 00885_ Adv. Beam Cannon destroyed. 00885_ Sensor Array destroyed. 00891_ EM Pulse Gun destroyed. 00893_ Airjet destroyed. 00900_ Grenade Launcher destroyed. 00901_ The unstable cave ceiling collapses. 00905_ Airjet destroyed. 00909_ Y-45 Defender destroyed. 00911_ Adv. Beam Cannon destroyed. 00912_ G-34 Mercenary destroyed. 00913_ Rocket Launcher destroyed. 00915_ R-06 Scavenger collects Ion Engine. 00916_ Cold Fusion Reactor destroyed. 00916_ Autogun destroyed. 00921_ R-06 Scavenger collects Ion Engine. 00925_ R-06 Scavenger collects Hvy. Assault Rifle. 00926_ R-06 Scavenger collects Beam Rifle. 00928_ R-06 Scavenger collects Lgt. Treads. Map ----- +----------------------------------------------------+ | ?????????????????????????????????????????????????? | | ?????????????????????????????????????????????????? | | ?????????????????????????????????????????????????? | | ?????????????????????????????????????????????????? | | ?????????????????????????????????????????????????? | | ?????????????????????????????????????????????????? | | ?????????????????????????????????????????????????? | | ?????????????????????????????????????????????????? | | ?????????????????????????????????????????????????? | | ?????????????????????????????????????????????????? | | ??? %%= ?????????????????????????????????????????? | | ??? [ ?????????????????????????????????????????? | | ??? ?????????????????????????????????????????? | | ??? = %???????????????????????? ??????????????? | | ??? [ ??????????????????????? ????????????? | | ???# ??????????????????????? ????????????? | | ???# #?????? ??????????????? a #???????????? | | ???# +??????? ############## #???????????? | | #### #????????/r !] ! ?????????????? | | ] # #?????????# ] ! ??????????????? | | # #?????????# #???????????????? | | # #?????????# #???????????????? | | " # #?????????# % #???????????????? | | " # ########### % =#???????????????? | | " # #???????????????? | | " # ##### #####r r @ #???????????????? | | # #???# #?# !Y ## ###+##???????????????? | | " + #???# #### #???????????????????????? | | " # #???# #???????????????????????? | | " # #####+# #Y #???????????????????????? | | " # # Y #??????????????????????? | | !# # # # ##??????????????????????? | | #### # """ # ?##### #???????????????????????? | | # """ #??????# #???????????????????????? | | + """ #??????# #???????????????????????? | | # """ #??????? #???????????????????????? | | ##+##+##? """ +??????? ???????????????????????? | | ????????? #???????+#???????????????????????? | | ?????????? #????????????????????????????????? | | ??????????### ##?????????????????????????????????? | | ????????????##???????????????????????????????????? | | ?????????????????????????????????????????????????? | | ?????????????????????????????????????????????????? | | ?????????????????????????????????????????????????? | | ?????????????????????????????????????????????????? | | ?????????????????????????????????????????????????? | | ?????????????????????????????????????????????????? | | ?????????????????????????????????????????????????? | | ?????????????????????????????????????????????????? | | ?????????????????????????????????????????????????? | +----------------------------------------------------+ Best States ------------- Heat Dissipation 28 Energy Generation 17 Energy Capacity 250 Matter Stores 279 Matter Capacity 300 Sight Range 16 Robot Scan Range 10 Terrain Scan Density 10 Evasion (%) 40 Recoil Reduction 2 Item Schematics ----------------- None Robot Schematics ------------------ None Fabricated ------------ Nothing Alien Tech Used ----------------- None Achievements -------------- None Challenges ------------ None Game ------ Seed CoilSuperchargedCapacitor Manual? 0 Play Time 00:23:23 Cumulative 69.5 hours Start 2020.08.09 @ 00:59:54 End 2020.08.09 @ 01:24:27 Sessions 1 Manual Loads 0 Difficulty Rogue Special Mode None Game No. 131 Rogue 131 Adventurer 0 Explorer 0 Win Type - Total 0 Types 0/0/0/0/0/0/0 Lore% 32 Gallery% 44 Achievement% 32 Wizard Run 0 Options --------- ASCII 0 Keyboard 0 Movement Mouse Keybinds 0 Fullscreen 2 Font 18/SmallcapsGlow Map View 76x50 Tactical HUD 1 Map Filters NONE Filters NONE Steam 1 RUN: 4524ccc2-6eeb-4b7e-96a5-0f76190f1ef3